fUSD/lending_fUSD_20240520
["ID","MTS","AMOUNT","RATE_DAILY","PERIOD"]
[327582507,1716245444993,-500.0,0.00038356,6]
[327582508,1716245445002,-500.0,0.00038356,6]
[327582509,1716245445011,-947.86,0.00038356,6]
[327582510,1716245445021,-500.0,0.00038356,6]
[327582511,1716245445031,-151.0,0.00038356,7]
[327582512,1716245445039,-156.033495,0.00038356,7]
[327582513,1716245445049,-500.0,0.00038356,6]
[327582514,1716245445058,-1000.0,0.00038356,6]
[327582515,1716245445067,-500.0,0.00038356,6]
[327582516,1716245445076,-500.0,0.00038356,6]
[327582517,1716245445085,-500.0,0.00038356,6]
[327582518,1716245445094,-500.0,0.00038356,6]
[327582519,1716245445103,-500.0,0.00038356,6]
[327582520,1716245445112,-500.0,0.00038356,6]
[327582521,1716245445122,-677.25,0.00038356,6]
[327582522,1716245445131,-542.79,0.00038356,6]
[327582523,1716245445139,-500.0,0.00038356,6]
[327582524,1716245445149,-500.0,0.00038356,6]
[327582525,1716245445158,-529.78,0.00038356,6]
[327582526,1716245445166,-500.0,0.00038356,6]
[327582527,1716245445175,-500.0,0.00038356,6]
[327582528,1716245445185,-528.74459653,0.00038356,6]
[327582529,1716245445194,-151.0,0.00038356,7]
[327582530,1716245445204,-151.0,0.00038356,7]
[327582531,1716245445213,-500.0,0.00038356,6]
[327582532,1716245445223,-894.5,0.00038356,6]
[327582533,1716245445231,-1183.71,0.00038356,6]
[327582534,1716245445240,-500.0,0.00038356,6]
[327582535,1716245445249,-500.0,0.00038356,2]
[327582536,1716245445259,-536.28,0.00038356,6]
[327582537,1716245445268,-648.97,0.00038356,6]
[327582538,1716245445277,-571.74,0.00038356,6]
[327582539,1716245445286,-500.0,0.00038356,6]
[327582540,1716245445295,-1296.5,0.00038356,6]
[327582541,1716245445304,-500.0,0.00038356,6]
[327582542,1716245445313,-500.0,0.00038356,6]
[327582543,1716245445323,-500.0,0.00038356,6]
[327582544,1716245445333,-500.0,0.00038356,6]
[327582545,1716245445342,-500.0,0.00038356,6]
[327582546,1716245445351,-500.0,0.00038356,6]
[327582547,1716245445360,-500.0,0.00038356,6]
[327582548,1716245445369,-500.0,0.00038356,6]
[327582549,1716245445377,-966.59,0.00038356,6]
[327582550,1716245445387,-500.0,0.00038356,6]
[327582551,1716245445395,-500.0,0.00038356,6]
[327582552,1716245445405,-500.0,0.00038356,6]
[327582553,1716245445414,-500.0,0.00038356,6]
[327582554,1716245445423,-514.29595089,0.00038356,6]
[327582555,1716245445432,-500.0,0.00038356,6]
[327582556,1716245445441,-500.0,0.00038356,6]
[327582557,1716245445451,-500.0,0.00038356,6]
[327582558,1716245445460,-887.97,0.00038356,6]
[327582559,1716245445469,-500.0,0.00038356,6]
[327582560,1716245445480,-500.0,0.00038356,6]
[327582561,1716245445490,-500.0,0.00038356,6]
[327582562,1716245445499,-685.22,0.00038356,6]
[327582563,1716245445508,-609.13,0.00038356,6]
[327582564,1716245445517,-500.0,0.00038356,6]
[327582565,1716245445527,-500.0,0.00038356,6]
[327582566,1716245445536,-614.37,0.00038356,6]
[327582567,1716245445546,-500.0,0.00038356,6]
[327582568,1716245445555,-1805.5,0.00038356,6]
[327582569,1716245445564,-500.0,0.00038356,6]
[327582570,1716245445574,-500.0,0.00038356,6]
[327582571,1716245445583,-500.0,0.00038356,6]
[327582572,1716245445592,-500.0,0.00038356,6]
[327582573,1716245445601,-500.0,0.00038356,6]
[327582574,1716245445610,-151.0,0.00038356,7]
[327582575,1716245445619,-500.0,0.00038356,6]
[327582576,1716245445628,-500.72,0.00038356,6]
[327582577,1716245445637,-518.90807189,0.00038356,6]
[327582578,1716245445646,-236.133293,0.00038356,7]
[327582579,1716245445655,-236.133293,0.00038356,7]
[327582580,1716245445664,-236.133293,0.00038356,7]
[327582581,1716245445673,-614.23,0.00038356,6]
[327582582,1716245445683,-721.58,0.00038356,6]
[327582583,1716245445692,-500.0,0.00038356,6]
[327582584,1716245445701,-236.133293,0.00038356,7]
[327582585,1716245445711,-500.0,0.00038356,6]
[327582586,1716245445720,-236.133293,0.00038356,7]
[327582587,1716245445730,-500.0,0.00038356,6]
[327582588,1716245445739,-236.133293,0.00038356,7]
[327582589,1716245445748,-236.133293,0.00038356,7]
[327582590,1716245445757,-236.133293,0.00038356,7]
[327582591,1716245445766,-151.0,0.00038356,7]
[327582592,1716245445775,-151.0,0.00038356,7]
[327582593,1716245445785,-524.27755487,0.00038356,6]
[327582594,1716245445794,-151.0,0.00038356,7]
[327582595,1716245445803,-509.21717233,0.00038356,6]
[327582596,1716245445812,-1594.63,0.00038356,6]
[327582597,1716245445821,-465.0,0.00038356,2]
[327582598,1716245445831,-951.99,0.00038356,6]
[327582599,1716245445840,-500.0,0.00038356,6]
[327582600,1716245445850,-500.0,0.00038356,6]
[327582601,1716245445860,-537.35855759,0.00038356,6]
[327582602,1716245445872,-500.0,0.00038356,6]
[327582603,1716245445881,-500.0,0.00038356,6]
[327582604,1716245445892,-500.0,0.00038356,6]
[327582605,1716245445902,-508.59267295,0.00038356,6]
[327582606,1716245445912,-500.0,0.00038356,6]
[327582607,1716245445922,-500.0,0.00038356,6]
[327582608,1716245445931,-737.26,0.00038356,6]
[327582609,1716245445940,-500.0,0.00038356,6]
[327582610,1716245445953,-521.60747845,0.00038356,6]
[327582611,1716245445963,-653.78,0.00038356,6]
[327582612,1716245445974,-500.0,0.00038356,6]
[327582613,1716245445984,-869.7,0.00038356,6]
[327582614,1716245445994,-507.5799917,0.00038356,6]
[327582615,1716245446003,-1235.45,0.00038356,6]
[327582616,1716245446014,-844.59,0.00038356,6]
[327582617,1716245446024,-500.0,0.00038356,6]
[327582618,1716245446034,-500.0,0.00038356,6]
[327582619,1716245446044,-197.700164,0.00038356,7]
[327582620,1716245446054,-500.0,0.00038356,6]
[327582621,1716245446063,-197.700164,0.00038356,7]
[327582622,1716245446073,-815.1,0.00038356,6]
[327582623,1716245446082,-197.700164,0.00038356,7]
[327582624,1716245446092,-500.0,0.00038356,6]
[327582625,1716245446102,-197.700164,0.00038356,7]
[327582626,1716245446111,-197.700164,0.00038356,7]
[327582627,1716245446121,-792.62,0.00038356,6]
[327582628,1716245446130,-500.0,0.00038356,6]
[327582629,1716245446139,-197.700164,0.00038356,7]
[327582630,1716245446148,-197.700164,0.00038356,7]
[327582631,1716245446157,-1688.49,0.00038356,6]
[327582632,1716245446167,-500.0,0.00038356,6]
[327582633,1716245446176,-197.700164,0.00038356,7]
[327582634,1716245446185,-500.0,0.00038356,6]
[327582635,1716245446194,-197.700164,0.00038356,7]
[327582636,1716245446204,-197.700164,0.00038356,7]
[327582637,1716245446213,-183.375737,0.00038356,7]
[327582638,1716245446225,-500.0,0.00038356,2]
[327582639,1716245446234,-500.0,0.00038356,6]
[327582640,1716245446243,-500.0,0.00038356,6]
[327582641,1716245446253,-500.0,0.00038356,6]
[327582642,1716245446263,-1132.52,0.00038356,6]
[327582643,1716245446272,-613.17,0.00038356,6]
[327582644,1716245446282,-169.88082088,0.00038356,6]
[327582645,1716245446292,-676.68,0.00038356,6]
[327582646,1716245446301,-514.04702963,0.00038356,6]
[327582647,1716245446311,-500.0,0.00038356,6]
[327582648,1716245446320,-500.0,0.00038356,6]
[327582649,1716245446330,-500.0,0.00038356,6]
[327582650,1716245446339,-190.52803329,0.00038356,6]
[327582651,1716245446348,-1112.93,0.00038356,6]
[327582652,1716245446358,-624.17,0.00038356,6]
[327582653,1716245446367,-500.0,0.00038356,6]
[327582654,1716245446377,-500.0,0.00038356,6]
[327582655,1716245446387,-500.0,0.00038356,6]
[327582656,1716245446397,-500.0,0.00038356,6]
[327582657,1716245446406,-1402.82,0.00038356,6]
[327582658,1716245446415,-500.0,0.00038356,6]
[327582659,1716245446424,-500.0,0.00038356,6]
[327582661,1716245446434,-151.0,0.00038356,7]
[327582663,1716245446443,-500.0,0.00038356,6]
[327582665,1716245446452,-151.0,0.00038356,7]
[327582667,1716245446462,-500.0,0.00038356,6]
[327582668,1716245446471,-151.0,0.00038356,7]
[327582670,1716245446482,-512.46741329,0.00038356,6]
[327582672,1716245446491,-503.98,0.00038356,6]
[327582674,1716245446500,-151.0,0.00038356,7]
[327582677,1716245446510,-1270.81,0.00038356,6]
[327582679,1716245446519,-538.05450888,0.00038356,6]
[327582681,1716245446528,-2000.0,0.00038356,6]
[327582683,1716245446537,-500.0,0.00038356,6]
[327582684,1716245446547,-500.0,0.00038356,6]
[327582685,1716245446555,-500.0,0.00038356,6]
[327582686,1716245446564,-500.0,0.00038356,6]
[327582687,1716245446573,-505.42296395,0.00038356,6]
[327582688,1716245446582,-500.0,0.00038356,6]
[327582689,1716245446591,-500.0,0.00038356,6]
[327582690,1716245446600,-500.0,0.00038356,6]
[327582691,1716245446608,-500.0,0.00038356,6]
[327582692,1716245446618,-1624.08,0.00038356,6]
[327582693,1716245446627,-1215.61,0.00038356,6]
[327582694,1716245446635,-500.0,0.00038356,6]
[327582695,1716245446644,-500.0,0.00038356,6]
[327582696,1716245446653,-500.0,0.00038356,6]
[327582697,1716245446663,-680.37,0.00038356,6]
[327582698,1716245446672,-500.0,0.00038356,6]
[327582699,1716245446680,-794.16,0.00038356,6]
[327582700,1716245446689,-500.0,0.00038356,6]
[327582701,1716245446698,-151.0,0.00038356,7]
[327582702,1716245446707,-507.73680338,0.00038356,6]
[327582703,1716245446716,-500.0,0.00038356,6]
[327582704,1716245446726,-500.0,0.00038356,6]
[327582705,1716245446736,-878.74,0.00038356,6]
[327582706,1716245446745,-500.0,0.00038356,6]
[327582707,1716245446975,-692.64,0.00038356,6]
[327582708,1716245446985,-556.27,0.00038356,6]
[327582709,1716245446995,-500.0,0.00038356,6]
[327582710,1716245447005,-500.0,0.00038356,6]
[327582711,1716245447015,-500.0,0.00038356,6]
[327582712,1716245447025,-521.24729856,0.00038356,6]
[327582713,1716245447034,-1468.73,0.00038356,6]
[327582714,1716245447044,-371.79659321,0.00038356,2]
[327582715,1716245447053,-1118.81,0.00038356,6]
[327582716,1716245447062,-500.0,0.00038356,6]
[327582717,1716245447072,-500.0,0.00038356,6]
[327582718,1716245447083,-531.44,0.00038356,6]
[327582719,1716245447092,-500.0,0.00038356,6]
[327582720,1716245447102,-500.0,0.00038356,6]
[327582721,1716245447112,-151.0,0.00038356,7]
[327582722,1716245447122,-151.0,0.00038356,7]
[327582723,1716245447131,-500.0,0.00038356,6]
[327582724,1716245447140,-762.04,0.00038356,6]
[327582725,1716245447148,-500.0,0.00038356,6]
[327582726,1716245447157,-1534.91,0.00038356,6]
[327582727,1716245447167,-1751.59,0.00038356,6]
[327582728,1716245447175,-20000.0,0.00038356,2]
[327582729,1716245447185,-500.0,0.00038356,6]
[327582730,1716245447194,-500.0,0.00038356,6]
[327582731,1716245447203,-500.0,0.00038356,6]
[327582732,1716245447212,-500.0,0.00038356,6]
[327582733,1716245447221,-500.0,0.00038356,6]
[327582734,1716245447230,-500.0,0.00038356,6]
[327582735,1716245447240,-1735.41,0.00038356,6]
[327582736,1716245447249,-500.0,0.00038356,6]
[327582737,1716245447258,-631.84,0.00038356,6]
[327582738,1716245447267,-500.0,0.00038356,6]
[327582739,1716245447276,-500.0,0.00038356,6]
[327582740,1716245447285,-281.83597484,0.00038356,6]
[327582741,1716245447295,-474.42036982,0.00038356,6]
[327582742,1716245447304,-548.69,0.00038356,6]
[327582743,1716245447313,-500.0,0.00038356,6]
[327582744,1716245447322,-1907.7,0.00038356,6]
[327582745,1716245447331,-519.74696662,0.00038356,6]
[327582746,1716245447340,-500.0,0.00038356,6]
[327582747,1716245447350,-500.0,0.00038356,6]
[327582748,1716245447359,-698.91,0.00038356,6]
[327582749,1716245447368,-500.0,0.00038356,6]
[327582750,1716245447377,-500.0,0.00038356,6]
[327582751,1716245447386,-500.0,0.00038356,6]
[327582752,1716245447395,-500.0,0.00038356,6]
[327582753,1716245447404,-500.0,0.00038356,6]
[327582754,1716245447413,-1562.11,0.00038356,6]
[327582755,1716245447422,-513.71221434,0.00038356,6]
[327582756,1716245447431,-500.0,0.00038356,6]
[327582757,1716245447441,-500.0,0.00038356,6]
[327582758,1716245447450,-168.5266475,0.00038356,6]
[327582759,1716245447459,-500.0,0.00038356,6]
[327582760,1716245447468,-500.0,0.00038356,6]
[327582761,1716245447478,-649.51,0.00038356,6]
[327582762,1716245447487,-500.0,0.00038356,6]
[327582763,1716245447496,-1735.52,0.00038356,6]
[327582764,1716245447506,-500.0,0.00038356,6]
[327582765,1716245447515,-500.0,0.00038356,6]
[327582766,1716245447524,-500.0,0.00038356,6]
[327582767,1716245447534,-500.0,0.00038356,6]
[327582768,1716245447543,-500.0,0.00038356,6]
[327582769,1716245447552,-509.01,0.00038356,6]
[327582770,1716245447561,-500.0,0.00038356,6]
[327582771,1716245447571,-151.0,0.00038356,7]
[327582772,1716245447580,-151.0,0.00038356,7]
[327582773,1716245447589,-3602.56,0.00038356,6]
[327582774,1716245447598,-151.0,0.00038356,7]
[327582775,1716245447607,-151.0,0.00038356,7]
[327582776,1716245447616,-151.0,0.00038356,7]
[327582777,1716245447625,-1326.84,0.00038356,6]
[327582778,1716245447635,-151.0,0.00038356,7]
[327582779,1716245447644,-151.0,0.00038356,7]
[327582780,1716245447653,-866.1,0.00038356,6]
[327582781,1716245447662,-263.116866,0.00038356,7]
[327582782,1716245447671,-500.0,0.00038356,6]
[327582783,1716245447680,-500.0,0.00038356,6]
[327582784,1716245447689,-500.0,0.00038356,6]
[327582785,1716245447699,-500.0,0.00038356,6]
[327582786,1716245447708,-2460.67,0.00038356,6]
[327582787,1716245447718,-1285.38,0.00038356,6]
[327582788,1716245447727,-500.0,0.00038356,6]
[327582789,1716245447736,-737.60157408,0.00038356,2]
[327582790,1716245447745,-500.0,0.00038356,2]
[327582791,1716245447754,-569.59,0.00038356,6]
[327582792,1716245447763,-500.0,0.00038356,6]
[327582793,1716245447772,-1141.46,0.00038356,6]
[327582794,1716245447781,-151.0,0.00038356,7]
[327582795,1716245447790,-500.0,0.00038356,6]
[327582796,1716245447799,-500.0,0.00038356,6]
[327582797,1716245447808,-717.83,0.00038356,6]
[327582798,1716245447818,-500.0,0.00038356,6]
[327582799,1716245447827,-996.73,0.00038356,6]
[327582800,1716245447836,-500.0,0.00038356,6]
[327582801,1716245447845,-1574.04,0.00038356,6]
[327582802,1716245447854,-151.0,0.00038356,7]
[327582803,1716245447868,-151.0,0.00038356,7]
[327582804,1716245447878,-724.94,0.00038356,6]
[327582805,1716245447887,-151.0,0.00038356,7]
[327582806,1716245447896,-151.0,0.00038356,7]
[327582807,1716245447907,-500.0,0.00038356,6]
[327582808,1716245447916,-500.0,0.00038356,6]
[327582809,1716245447925,-151.0,0.00038356,7]
[327582810,1716245447934,-500.0,0.00038356,6]
[327582811,1716245447944,-151.0,0.00038356,7]
[327582812,1716245447954,-151.0,0.00038356,7]
[327582813,1716245447963,-500.0,0.00038356,6]
[327582814,1716245447973,-901.8,0.00038356,6]
[327582815,1716245447985,-500.0,0.00038356,6]
[327582816,1716245447994,-151.0,0.00038356,7]
[327582817,1716245448003,-500.0,0.00038356,6]
[327582818,1716245448012,-151.0,0.00038356,7]
[327582819,1716245448021,-505.71521199,0.00038356,6]
[327582820,1716245448030,-287.534162,0.00038356,7]
[327582821,1716245448040,-151.0,0.00038356,7]
[327582822,1716245448049,-151.0,0.00038356,7]
[327582823,1716245448059,-291.827996,0.00038356,7]
[327582824,1716245448068,-517.20184901,0.00038356,6]
[327582825,1716245448077,-650.03,0.00038356,6]
[327582826,1716245448087,-554.02602343,0.00038356,6]
[327582827,1716245448096,-1379.17,0.00038356,6]
[327582828,1716245448106,-1006.7,0.00038356,6]
[327582829,1716245448115,-500.0,0.00038356,6]
[327582830,1716245448125,-603.33640405,0.00038356,2]
[327582831,1716245448134,-500.0,0.00038356,2]
[327582832,1716245448143,-727.37,0.00038356,6]
[327582833,1716245448152,-500.0,0.00038356,6]
[327582834,1716245448162,-500.0,0.00038356,6]
[327582835,1716245448171,-542.65540595,0.00038356,6]
[327582836,1716245448180,-516.58338021,0.00038356,6]
[327582837,1716245448190,-151.0,0.00038356,7]
[327582838,1716245448199,-500.0,0.00038356,6]
[327582839,1716245448208,-151.0,0.00038356,7]
[327582840,1716245448218,-151.0,0.00038356,7]
[327582841,1716245448229,-500.0,0.00038356,6]
[327582842,1716245448238,-554.590026,0.00038356,6]
[327582843,1716245448248,-507.19417671,0.00038356,6]
[327582844,1716245448257,-1247.46,0.00038356,6]
[327582845,1716245448266,-500.0,0.00038356,6]
[327582846,1716245448276,-500.0,0.00038356,6]
[327582847,1716245448285,-504.65665438,0.00038356,6]
[327582848,1716245448294,-500.0,0.00038356,6]
[327582849,1716245448303,-151.0,0.00038356,7]
[327582850,1716245448312,-500.0,0.00038356,6]
[327582851,1716245448321,-1235.09,0.00038356,6]
[327582852,1716245448332,-500.0,0.00038356,6]
[327582853,1716245448341,-608.61,0.00038356,6]
[327582854,1716245448350,-151.0,0.00038356,7]
[327582855,1716245448360,-151.0,0.00038356,7]
[327582856,1716245448369,-151.0,0.00038356,7]
[327582857,1716245448379,-570.47,0.00038356,6]
[327582858,1716245448388,-151.0,0.00038356,7]
[327582859,1716245448397,-151.0,0.00038356,7]
[327582860,1716245448407,-151.0,0.00038356,7]
[327582861,1716245448416,-151.0,0.00038356,7]
[327582862,1716245448425,-151.0,0.00038356,7]
[327582863,1716245448434,-151.0,0.00038356,7]
[327582864,1716245448444,-151.0,0.00038356,7]
[327582865,1716245448454,-151.0,0.00038356,7]
[327582866,1716245448463,-151.0,0.00038356,7]
[327582867,1716245448472,-194.559017,0.00038356,7]
[327582868,1716245448484,-500.0,0.00038356,6]
[327582869,1716245448493,-374.43201219,0.00038356,6]
[327582870,1716245448503,-151.0,0.00038356,7]
[327582871,1716245448512,-151.0,0.00038356,7]
[327582872,1716245448521,-151.0,0.00038356,7]
[327582873,1716245448530,-151.0,0.00038356,7]
[327582874,1716245448539,-151.0,0.00038356,7]
[327582875,1716245448549,-151.0,0.00038356,7]
[327582876,1716245448558,-151.0,0.00038356,7]
[327582877,1716245448568,-151.0,0.00038356,7]
[327582878,1716245448578,-151.0,0.00038356,7]
[327582879,1716245448587,-500.0,0.00038356,6]
[327582880,1716245448596,-151.0,0.00038356,7]
[327582881,1716245448606,-500.0,0.00038356,6]
[327582882,1716245448616,-749.41,0.00038356,6]
[327582883,1716245448625,-549.10311725,0.00038356,6]
[327582884,1716245448634,-500.0,0.00038356,6]
[327582885,1716245448644,-151.0,0.00038356,7]
[327582886,1716245448654,-151.0,0.00038356,7]
[327582887,1716245448663,-151.0,0.00038356,7]
[327582888,1716245448672,-151.0,0.00038356,7]
[327582889,1716245448682,-151.0,0.00038356,7]
[327582890,1716245448691,-2567.34,0.00038356,6]
[327582891,1716245448700,-500.0,0.00038356,6]
[327582892,1716245448710,-500.0,0.00038356,6]
[327582893,1716245448719,-500.0,0.00038356,6]
[327582894,1716245448730,-151.0,0.00038356,7]
[327582895,1716245448739,-500.0,0.00038356,6]
[327582896,1716245448749,-500.0,0.00038356,6]
[327582897,1716245448758,-151.0,0.00038356,7]
[327582898,1716245448767,-500.0,0.00038356,6]
[327582899,1716245448776,-500.0,0.00038356,6]
[327582900,1716245448785,-802.27,0.00038356,6]
[327582901,1716245448796,-500.0,0.00038356,6]
[327582902,1716245448805,-504.98,0.00038356,6]
[327582903,1716245448815,-548.97793414,0.00038356,6]
[327582904,1716245448826,-500.0,0.00038356,6]
[327582905,1716245448836,-3300.11,0.00038356,6]
[327582906,1716245448845,-500.0,0.00038356,6]
[327582907,1716245448855,-500.0,0.00038356,6]
[327582908,1716245448865,-500.0,0.00038356,6]
[327582909,1716245448879,-1619.34,0.00038356,6]
[327582910,1716245448888,-500.0,0.00038356,6]
[327582911,1716245448898,-500.0,0.00038356,6]
[327582912,1716245448907,-500.0,0.00038356,6]
[327582913,1716245448918,-500.0,0.00038356,6]
[327582914,1716245448928,-151.0,0.00038356,7]
[327582915,1716245448937,-151.0,0.00038356,7]
[327582916,1716245448949,-500.0,0.00038356,6]
[327582917,1716245448959,-500.0,0.00038356,6]
[327582918,1716245448968,-151.0,0.00038356,7]
[327582919,1716245448978,-151.0,0.00038356,7]
[327582920,1716245448988,-151.0,0.00038356,7]
[327582921,1716245448997,-500.0,0.00038356,6]
[327582922,1716245449007,-500.0,0.00038356,6]
[327582923,1716245449017,-500.0,0.00038356,6]
[327582924,1716245449026,-1116.21,0.00038356,6]
[327582925,1716245449035,-526.38059258,0.00038356,6]
[327582926,1716245449045,-500.0,0.00038356,6]
[327582927,1716245449054,-500.0,0.00038356,6]
[327582928,1716245449063,-500.0,0.00038356,6]
[327582929,1716245449073,-500.0,0.00038356,6]
[327582930,1716245449083,-500.0,0.00038356,6]
[327582931,1716245449092,-500.0,0.00038356,6]
[327582932,1716245449101,-1335.12,0.00038356,6]
[327582933,1716245449110,-500.0,0.00038356,6]
[327582934,1716245449120,-500.0,0.00038356,6]
[327582935,1716245449129,-500.0,0.00038356,6]
[327582936,1716245449139,-500.0,0.00038356,6]
[327582937,1716245449148,-500.0,0.00038356,6]
[327582938,1716245449157,-646.45,0.00038356,6]
[327582939,1716245449166,-968.38,0.00038356,6]
[327582940,1716245449176,-500.0,0.00038356,6]
[327582941,1716245449185,-500.0,0.00038356,6]
[327582942,1716245449195,-500.0,0.00038356,6]
[327582943,1716245449204,-233.561658,0.00038356,7]
[327582944,1716245449213,-538.12523043,0.00038356,6]
[327582945,1716245449222,-233.561658,0.00038356,7]
[327582946,1716245449233,-151.0,0.00038356,7]
[327582947,1716245449243,-233.561658,0.00038356,7]
[327582948,1716245449252,-151.0,0.00038356,7]
[327582949,1716245449263,-233.561658,0.00038356,7]
[327582950,1716245449355,-151.0,0.00038356,7]
[327582951,1716245449364,-233.561658,0.00038356,7]
[327582952,1716245449374,-1171.28,0.00038356,6]
[327582953,1716245449383,-763.5,0.00038356,6]
[327582954,1716245449392,-257.279502,0.00038356,7]
[327582955,1716245449401,-500.0,0.00038356,6]
[327582956,1716245449411,-500.0,0.00038356,6]
[327582957,1716245449420,-500.0,0.00038356,6]
[327582958,1716245449430,-852.13,0.00038356,6]
[327582959,1716245449439,-500.0,0.00038356,6]
[327582960,1716245449448,-233.561658,0.00038356,7]
[327582961,1716245449457,-233.561658,0.00038356,7]
[327582962,1716245449467,-233.561658,0.00038356,7]
[327582963,1716245449477,-645.10923569,0.00038356,6]
[327582964,1716245449486,-233.561658,0.00038356,7]
[327582965,1716245449495,-233.561658,0.00038356,7]
[327582966,1716245449505,-500.0,0.00038356,6]
[327582967,1716245449515,-500.0,0.00038356,6]
[327582968,1716245449525,-500.0,0.00038356,6]
[327582969,1716245449535,-500.0,0.00038356,6]
[327582970,1716245449544,-557.36363329,0.00038356,6]
[327582971,1716245449554,-521.37351474,0.00038356,6]
[327582972,1716245449563,-863.61,0.00038356,6]
[327582973,1716245449572,-500.0,0.00038356,6]
[327582974,1716245449581,-500.0,0.00038356,6]
[327582975,1716245449591,-500.0,0.00038356,6]
[327582976,1716245449599,-978.05,0.00038356,6]
[327582977,1716245449608,-785.07,0.00038356,6]
[327582978,1716245449618,-500.0,0.00038356,6]
[327582979,1716245449628,-500.0,0.00038356,6]
[327582980,1716245449637,-530.3871519,0.00038356,6]
[327582981,1716245449647,-500.0,0.00038356,6]
[327582982,1716245449658,-500.0,0.00038356,6]
[327582983,1716245449669,-500.0,0.00038356,6]
[327582984,1716245449679,-151.0,0.00038356,7]
[327582985,1716245449688,-151.0,0.00038356,7]
[327582986,1716245449698,-751.13,0.00038356,6]
[327582987,1716245449707,-151.0,0.00038356,7]
[327582988,1716245449716,-151.0,0.00038356,7]
[327582989,1716245449726,-151.0,0.00038356,7]
[327582990,1716245449738,-3302.95,0.00038356,6]
[327582991,1716245449746,-500.0,0.00038356,6]
[327582992,1716245449755,-151.0,0.00038356,7]
[327582993,1716245449765,-151.0,0.00038356,7]
[327582994,1716245449773,-151.0,0.00038356,7]
[327582995,1716245449782,-500.0,0.00038356,6]
[327582996,1716245449792,-193.104435,0.00038356,7]
[327582997,1716245449801,-151.0,0.00038356,7]
[327582998,1716245449811,-151.0,0.00038356,7]
[327582999,1716245449820,-151.0,0.00038356,7]
[327583000,1716245449830,-500.0,0.00038356,6]
[327583001,1716245449839,-151.0,0.00038356,7]
[327583002,1716245449848,-151.0,0.00038356,7]
[327583003,1716245449857,-548.40561244,0.00038356,6]
[327583004,1716245449872,-3080.6,0.00038356,6]
[327583005,1716245449881,-1000.0,0.00038356,6]
[327583006,1716245449890,-151.0,0.00038356,7]
[327583007,1716245449900,-500.0,0.00038356,6]
[327583008,1716245449910,-151.0,0.00038356,7]
[327583009,1716245449919,-500.0,0.00038356,6]
[327583010,1716245449928,-725.61,0.00038356,6]
[327583011,1716245449937,-255.673828,0.00038356,7]
[327583012,1716245449948,-151.0,0.00038356,7]
[327583013,1716245449958,-151.0,0.00038356,7]
[327583014,1716245449967,-500.0,0.00038356,6]
[327583015,1716245449976,-500.0,0.00038356,6]
[327583016,1716245449988,-4037.06,0.00038356,6]
[327583017,1716245449998,-500.0,0.00038356,6]
[327583018,1716245450007,-500.0,0.00038356,6]